[Event "December 5 Late 2023"]
[Site "https://www.chess.com"]
[Date "2023.12.05"]
[Round "4"]
[White "Holt, Conrad"]
[Black "Estrada Nieto, Julian"]
[Result "1-0"]
[Board "48"]
[TimeControl "180+1"]
[WhiteFideId "2034387"]
[BlackFideId "5101018"]
[WhiteElo "2798"]
[BlackElo "2557"]
[WhiteTeam "USA"]
[BlackTeam "ESP"]
[WhiteClock "0:00:18"]
[BlackClock "0:00:15"]

1. d4 {[%clk 0:03:00]}  d5 {[%clk 0:02:59]} 2. c4 {[%clk 0:03:00]}  dxc4 {[%clk 0:02:58]} 3. e3 {[%clk 0:02:59]}  Nf6 {[%clk 0:02:58]} 4. Bxc4 {[%clk 0:03:00]}  e6 {[%clk 0:02:59]} 5. Nf3 {[%clk 0:02:59]}  c5 {[%clk 0:03:00]} 6. O-O {[%clk 0:02:57]}  a6 {[%clk 0:02:59]} 7. dxc5 {[%clk 0:02:49]}  Bxc5 {[%clk 0:02:59]} 8. Qxd8+ {[%clk 0:02:48]}  Kxd8 {[%clk 0:03:00]} 9. Be2 {[%clk 0:02:45]}  Ke7 {[%clk 0:02:59]} 10. Ne5 {[%clk 0:02:42]}  Nbd7 {[%clk 0:02:59]} 11. Nd3 {[%clk 0:02:40]}  Bd6 {[%clk 0:02:52]} 12. Nd2 {[%clk 0:02:39]}  Ne5 {[%clk 0:02:41]} 13. Nxe5 {[%clk 0:02:38]}  Bxe5 {[%clk 0:02:41]} 14. Nc4 {[%clk 0:02:38]}  Bc7 {[%clk 0:02:32]} 15. b3 {[%clk 0:02:33]}  Rd8 {[%clk 0:02:32]} 16. Ba3+ {[%clk 0:02:33]}  Ke8 {[%clk 0:02:32]} 17. Rfd1 {[%clk 0:02:31]}  Bd7 {[%clk 0:02:16]} 18. Bf3 {[%clk 0:02:25]}  Bc6 {[%clk 0:02:08]} 19. Bxc6+ {[%clk 0:02:23]}  bxc6 {[%clk 0:02:08]} 20. f3 {[%clk 0:02:12]}  Nd5 {[%clk 0:02:03]} 21. Rac1 {[%clk 0:02:06]}  a5 {[%clk 0:02:00]} 22. Bc5 {[%clk 0:02:03]}  Nb4 {[%clk 0:01:55]} 23. Rxd8+ {[%clk 0:01:19]}  Rxd8 {[%clk 0:01:51]} 24. Bxb4 {[%clk 0:01:20]}  axb4 {[%clk 0:01:50]} 25. Kf2 {[%clk 0:01:17]}  h5 {[%clk 0:01:47]} 26. f4 {[%clk 0:01:13]}  f6 {[%clk 0:01:44]} 27. Ke2 {[%clk 0:01:12]}  g5 {[%clk 0:01:41]} 28. fxg5 {[%clk 0:01:06]}  fxg5 {[%clk 0:01:40]} 29. h3 {[%clk 0:01:06]}  Ra8 {[%clk 0:01:40]} 30. Rc2 {[%clk 0:01:06]}  Ke7 {[%clk 0:01:40]} 31. Kf3 {[%clk 0:00:58]}  Rf8+ {[%clk 0:01:37]} 32. Ke4 {[%clk 0:00:58]}  g4 {[%clk 0:01:34]} 33. hxg4 {[%clk 0:00:57]}  hxg4 {[%clk 0:01:34]} 34. Nb2 {[%clk 0:00:57]}  Kd7 {[%clk 0:01:21]} 35. Nd3 {[%clk 0:00:53]}  Bd6 {[%clk 0:01:20]} 36. Nf2 {[%clk 0:00:35]}  Rg8 {[%clk 0:01:13]} 37. Nd3 {[%clk 0:00:35]}  Rf8 {[%clk 0:01:13]} 38. Rf2 {[%clk 0:00:34]}  Ra8 {[%clk 0:01:07]} 39. Ne5+ {[%clk 0:00:30]}  Bxe5 {[%clk 0:01:04]} 40. Kxe5 {[%clk 0:00:31]}  c5 {[%clk 0:00:51]} 41. Rd2+ {[%clk 0:00:26]}  Kc7 {[%clk 0:00:49]} 42. e4 {[%clk 0:00:24]}  Re8 {[%clk 0:00:38]} 43. g3 {[%clk 0:00:22]}  Rf8 {[%clk 0:00:34]} 44. Kxe6 {[%clk 0:00:20]}  Rf3 {[%clk 0:00:33]} 45. Rg2 {[%clk 0:00:20]}  Kc6 {[%clk 0:00:32]} 46. e5 {[%clk 0:00:17]}  Re3 {[%clk 0:00:32]} 47. Kf5 {[%clk 0:00:17]}  Kd5 {[%clk 0:00:30]} 48. Rd2+ {[%clk 0:00:18]}  Kc6 {[%clk 0:00:29]} 49. e6 {[%clk 0:00:17]}  Re1 {[%clk 0:00:23]} 50. Kf6 {[%clk 0:00:15]}  Rf1+ {[%clk 0:00:22]} 51. Kg6 {[%clk 0:00:15]}  Re1 {[%clk 0:00:20]} 52. Kf7 {[%clk 0:00:15]}  Rf1+ {[%clk 0:00:20]} 53. Ke8 {[%clk 0:00:16]}  Re1 {[%clk 0:00:20]} 54. e7 {[%clk 0:00:16]}  Re3 {[%clk 0:00:20]} 55. Kd8 {[%clk 0:00:16]}  c4 {[%clk 0:00:18]} 56. bxc4 {[%clk 0:00:16]}  Kc5 {[%clk 0:00:18]} 57. e8=Q {[%clk 0:00:16]}  Rxe8+ {[%clk 0:00:18]} 58. Kxe8 {[%clk 0:00:17]}  Kxc4 {[%clk 0:00:19]} 59. Rf2 {[%clk 0:00:17]}  Kc3 {[%clk 0:00:19]} 60. Rf4 {[%clk 0:00:17]}  Kb2 {[%clk 0:00:17]} 61. Rxb4+ {[%clk 0:00:18]}  Ka3 {[%clk 0:00:15]} 62. Rxg4 {[%clk 0:00:18]} 1-0

[Event "December 5 Late 2023"]
[Site "https://www.chess.com"]
[Date "2023.12.05"]
[Round "4"]
[White "Rangel, Daniel"]
[Black "Ghasi, Ameet K"]
[Result "1/2-1/2"]
[Board "49"]
[TimeControl "180+1"]
[WhiteFideId "2124475"]
[BlackFideId "409200"]
[WhiteElo "2543"]
[BlackElo "2797"]
[WhiteTeam "BRA"]
[BlackTeam "ENG"]
[WhiteClock "0:00:08"]
[BlackClock "0:00:08"]

1. d4 {[%clk 0:03:00]}  g6 {[%clk 0:03:00]} 2. c4 {[%clk 0:03:00]}  d6 {[%clk 0:03:00]} 3. Nc3 {[%clk 0:03:00]}  Nf6 {[%clk 0:03:01]} 4. Nf3 {[%clk 0:02:58]}  Bg7 {[%clk 0:03:01]} 5. e4 {[%clk 0:02:57]}  O-O {[%clk 0:03:01]} 6. h3 {[%clk 0:02:49]}  Nc6 {[%clk 0:03:00]} 7. d5 {[%clk 0:02:47]}  Nb4 {[%clk 0:02:59]} 8. Be2 {[%clk 0:02:41]}  e6 {[%clk 0:02:58]} 9. O-O {[%clk 0:02:40]}  exd5 {[%clk 0:02:57]} 10. cxd5 {[%clk 0:02:36]}  Re8 {[%clk 0:02:57]} 11. a3 {[%clk 0:02:36]}  Na6 {[%clk 0:02:57]} 12. Qc2 {[%clk 0:02:36]}  Nc5 {[%clk 0:02:57]} 13. Nd2 {[%clk 0:02:34]}  a5 {[%clk 0:02:58]} 14. Bb5 {[%clk 0:02:26]}  Bd7 {[%clk 0:02:57]} 15. Bxd7 {[%clk 0:02:25]}  Nfxd7 {[%clk 0:02:56]} 16. Nb3 {[%clk 0:02:17]}  Qh4 {[%clk 0:02:54]} 17. Nxc5 {[%clk 0:02:14]}  Nxc5 {[%clk 0:02:55]} 18. f3 {[%clk 0:01:41]}  Bd4+ {[%clk 0:02:54]} 19. Kh1 {[%clk 0:01:40]}  Be5 {[%clk 0:02:55]} 20. Qf2 {[%clk 0:01:32]}  Qxf2 {[%clk 0:02:53]} 21. Rxf2 {[%clk 0:01:31]}  f5 {[%clk 0:02:49]} 22. exf5 {[%clk 0:01:17]}  Bxc3 {[%clk 0:02:40]} 23. bxc3 {[%clk 0:01:15]}  Re1+ {[%clk 0:02:41]} 24. Kh2 {[%clk 0:01:13]}  Nb3 {[%clk 0:02:33]} 25. Rb1 {[%clk 0:01:14]}  a4 {[%clk 0:02:00]} 26. fxg6 {[%clk 0:01:12]}  hxg6 {[%clk 0:01:59]} 27. Rfb2 {[%clk 0:01:09]}  Nxc1 {[%clk 0:01:49]} 28. Rxb7 {[%clk 0:01:05]}  Rc8 {[%clk 0:01:46]} 29. Ra7 {[%clk 0:01:04]}  Nd3 {[%clk 0:01:36]} 30. Rxe1 {[%clk 0:01:05]}  Nxe1 {[%clk 0:01:37]} 31. Rxa4 {[%clk 0:01:04]}  Nd3 {[%clk 0:01:37]} 32. Ra7 {[%clk 0:00:52]}  Kf7 {[%clk 0:01:29]} 33. a4 {[%clk 0:00:52]}  Ke7 {[%clk 0:01:29]} 34. a5 {[%clk 0:00:52]}  Nc5 {[%clk 0:01:26]} 35. h4 {[%clk 0:00:49]}  Kd7 {[%clk 0:01:24]} 36. g4 {[%clk 0:00:46]}  Re8 {[%clk 0:01:17]} 37. Kg3 {[%clk 0:00:44]}  Na4 {[%clk 0:00:50]} 38. c4 {[%clk 0:00:34]}  Nb2 {[%clk 0:00:50]} 39. Kf4 {[%clk 0:00:34]}  Nxc4 {[%clk 0:00:43]} 40. Kg5 {[%clk 0:00:35]}  Rg8 {[%clk 0:00:43]} 41. a6 {[%clk 0:00:30]}  Nb6 {[%clk 0:00:40]} 42. Rb7 {[%clk 0:00:30]}  Nxd5 {[%clk 0:00:37]} 43. a7 {[%clk 0:00:30]}  Ra8 {[%clk 0:00:36]} 44. Kxg6 {[%clk 0:00:29]}  Kc6 {[%clk 0:00:36]} 45. Rb8 {[%clk 0:00:26]}  Rxa7 {[%clk 0:00:37]} 46. h5 {[%clk 0:00:26]}  Ra3 {[%clk 0:00:35]} 47. h6 {[%clk 0:00:24]}  Rxf3 {[%clk 0:00:19]} 48. h7 {[%clk 0:00:22]}  Nf4+ {[%clk 0:00:18]} 49. Kg7 {[%clk 0:00:16]}  Ne6+ {[%clk 0:00:17]} 50. Kg8 {[%clk 0:00:17]}  Rh3 {[%clk 0:00:06]} 51. h8=Q {[%clk 0:00:17]}  Rxh8+ {[%clk 0:00:07]} 52. Kxh8 {[%clk 0:00:18]}  Kd5 {[%clk 0:00:07]} 53. Kh7 {[%clk 0:00:16]}  Ke5 {[%clk 0:00:05]} 54. Kh6 {[%clk 0:00:14]}  Kf6 {[%clk 0:00:04]} 55. Rc8 {[%clk 0:00:12]}  c5 {[%clk 0:00:04]} 56. Rc6 {[%clk 0:00:12]}  Ke5 {[%clk 0:00:03]} 57. g5 {[%clk 0:00:11]}  d5 {[%clk 0:00:02]} 58. g6 {[%clk 0:00:11]}  Nd4 {[%clk 0:00:01]} 59. Rc8 {[%clk 0:00:11]}  Nf5+ {[%clk 0:00:01]} 60. Kh7 {[%clk 0:00:11]}  c4 {[%clk 0:00:01]} 61. Re8+ {[%clk 0:00:11]}  Kd4 {[%clk 0:00:01]} 62. Rf8 {[%clk 0:00:11]}  Ne7 {[%clk 0:00:02]} 63. g7 {[%clk 0:00:10]}  c3 {[%clk 0:00:02]} 64. Re8 {[%clk 0:00:09]}  c2 {[%clk 0:00:02]} 65. Rxe7 {[%clk 0:00:09]}  c1=Q {[%clk 0:00:03]} 66. g8=Q {[%clk 0:00:09]}  Qh1+ {[%clk 0:00:03]} 67. Kg7 {[%clk 0:00:10]}  Qg2+ {[%clk 0:00:04]} 68. Kf8 {[%clk 0:00:10]}  Qxg8+ {[%clk 0:00:04]} 69. Kxg8 {[%clk 0:00:09]}  Kc3 {[%clk 0:00:05]} 70. Kf7 {[%clk 0:00:09]}  d4 {[%clk 0:00:05]} 71. Ke6 {[%clk 0:00:09]}  d3 {[%clk 0:00:06]} 72. Rc7+ {[%clk 0:00:08]}  Kb2 {[%clk 0:00:06]} 73. Rd7 {[%clk 0:00:08]}  Kc2 {[%clk 0:00:07]} 74. Ke5 {[%clk 0:00:08]}  d2 {[%clk 0:00:07]} 75. Ke4 {[%clk 0:00:08]}  d1=Q {[%clk 0:00:07]} 76. Rxd1 {[%clk 0:00:08]}  Kxd1 {[%clk 0:00:08]} 1/2-1/2

[Event "December 5 Late 2023"]
[Site "https://www.chess.com"]
[Date "2023.12.05"]
[Round "4"]
[White "Kashefi, Amir Hosein"]
[Black "Hamidi, Amir Mohammad"]
[Result "0-1"]
[Board "50"]
[TimeControl "180+1"]
[WhiteFideId "12557935"]
[BlackFideId "12563285"]
[WhiteElo "2541"]
[BlackElo "2794"]
[WhiteTeam "IRI"]
[BlackTeam "IRI"]
[WhiteClock "0:00:02"]
[BlackClock "0:00:18"]

1. d4 {[%clk 0:03:00]}  c5 {[%clk 0:03:00]} 2. e3 {[%clk 0:03:00]}  Nf6 {[%clk 0:03:00]} 3. Nf3 {[%clk 0:03:01]}  g6 {[%clk 0:03:00]} 4. b3 {[%clk 0:03:01]}  Bg7 {[%clk 0:03:01]} 5. Bb2 {[%clk 0:03:01]}  O-O {[%clk 0:03:02]} 6. Nbd2 {[%clk 0:03:01]}  d5 {[%clk 0:03:01]} 7. dxc5 {[%clk 0:02:59]}  Qa5 {[%clk 0:02:59]} 8. Be2 {[%clk 0:02:55]}  Qxc5 {[%clk 0:02:57]} 9. O-O {[%clk 0:02:54]}  Nc6 {[%clk 0:02:57]} 10. a3 {[%clk 0:02:51]}  Bg4 {[%clk 0:02:52]} 11. Rc1 {[%clk 0:02:47]}  Rad8 {[%clk 0:02:49]} 12. c4 {[%clk 0:02:45]}  dxc4 {[%clk 0:02:47]} 13. Rxc4 {[%clk 0:02:45]}  Qb6 {[%clk 0:02:30]} 14. Bxf6 {[%clk 0:02:44]}  Bxf3 {[%clk 0:02:29]} 15. Bxf3 {[%clk 0:02:15]}  Bxf6 {[%clk 0:02:29]} 16. Bxc6 {[%clk 0:02:15]}  bxc6 {[%clk 0:02:29]} 17. Qc2 {[%clk 0:02:15]}  Qb7 {[%clk 0:02:25]} 18. Ne4 {[%clk 0:02:14]}  Bg7 {[%clk 0:02:25]} 19. b4 {[%clk 0:02:13]}  a5 {[%clk 0:02:19]} 20. bxa5 {[%clk 0:02:12]}  Ra8 {[%clk 0:02:15]} 21. Rxc6 {[%clk 0:02:07]}  Rxa5 {[%clk 0:02:13]} 22. Rc7 {[%clk 0:02:06]}  Qa6 {[%clk 0:02:05]} 23. a4 {[%clk 0:01:58]}  Re5 {[%clk 0:01:39]} 24. Rc4 {[%clk 0:01:55]}  h6 {[%clk 0:01:35]} 25. Rd1 {[%clk 0:01:53]}  Ra8 {[%clk 0:01:32]} 26. g3 {[%clk 0:01:44]}  Ra5 {[%clk 0:01:27]} 27. Nc5 {[%clk 0:01:43]}  Qf6 {[%clk 0:01:20]} 28. Nd7 {[%clk 0:01:39]}  Qf3 {[%clk 0:01:18]} 29. Rc1 {[%clk 0:01:29]}  h5 {[%clk 0:01:16]} 30. Qb3 {[%clk 0:01:23]}  e6 {[%clk 0:01:00]} 31. Rf4 {[%clk 0:01:20]}  Qe2 {[%clk 0:00:59]} 32. Qb7 {[%clk 0:01:06]}  Qa6 {[%clk 0:00:54]} 33. Qxa6 {[%clk 0:00:56]}  R5xa6 {[%clk 0:00:55]} 34. Rcc4 {[%clk 0:00:52]}  g5 {[%clk 0:00:44]} 35. Rf3 {[%clk 0:00:11]}  Rxa4 {[%clk 0:00:34]} 36. Rc7 {[%clk 0:00:11]}  R4a7 {[%clk 0:00:33]} 37. Rxa7 {[%clk 0:00:09]}  Rxa7 {[%clk 0:00:33]} 38. Nf6+ {[%clk 0:00:08]}  Bxf6 {[%clk 0:00:33]} 39. Rxf6 {[%clk 0:00:09]}  Kg7 {[%clk 0:00:34]} 40. Rf3 {[%clk 0:00:09]}  Ra4 {[%clk 0:00:32]} 41. Kg2 {[%clk 0:00:09]}  Kg6 {[%clk 0:00:24]} 42. h3 {[%clk 0:00:08]}  e5 {[%clk 0:00:22]} 43. e4 {[%clk 0:00:02]}  Rxe4 {[%clk 0:00:23]} 44. Ra3 {[%clk 0:00:03]}  f6 {[%clk 0:00:23]} 45. Ra8 {[%clk 0:00:03]}  Rb4 {[%clk 0:00:23]} 46. Rg8+ {[%clk 0:00:04]}  Kf7 {[%clk 0:00:23]} 47. Ra8 {[%clk 0:00:04]}  h4 {[%clk 0:00:23]} 48. Ra7+ {[%clk 0:00:04]}  Kg6 {[%clk 0:00:23]} 49. gxh4 {[%clk 0:00:04]}  Rxh4 {[%clk 0:00:24]} 50. Ra8 {[%clk 0:00:04]}  Rb4 {[%clk 0:00:24]} 51. Rg8+ {[%clk 0:00:04]}  Kf5 {[%clk 0:00:25]} 52. Ra8 {[%clk 0:00:05]}  Rb2 {[%clk 0:00:25]} 53. Re8 {[%clk 0:00:04]}  e4 {[%clk 0:00:25]} 54. Re7 {[%clk 0:00:04]}  Kf4 {[%clk 0:00:25]} 55. Re6 {[%clk 0:00:04]}  f5 {[%clk 0:00:26]} 56. Re8 {[%clk 0:00:04]}  Re2 {[%clk 0:00:26]} 57. Kf1 {[%clk 0:00:04]}  Ra2 {[%clk 0:00:26]} 58. Kg2 {[%clk 0:00:04]}  Ra3 {[%clk 0:00:26]} 59. Re6 {[%clk 0:00:04]}  e3 {[%clk 0:00:19]} 60. Re7 {[%clk 0:00:02]}  exf2 {[%clk 0:00:18]} 61. Re2 {[%clk 0:00:01]}  Rg3+ {[%clk 0:00:17]} 62. Kxf2 {[%clk 0:00:01]}  Rxh3 {[%clk 0:00:17]} 63. Re8 {[%clk 0:00:01]}  Rh2+ {[%clk 0:00:16]} 64. Kg1 {[%clk 0:00:02]}  Ra2 {[%clk 0:00:17]} 65. Re2 {[%clk 0:00:01]}  Rxe2 {[%clk 0:00:17]} 66. Kf1 {[%clk 0:00:01]}  Ra2 {[%clk 0:00:18]} 67. Kg1 {[%clk 0:00:01]}  Kf3 {[%clk 0:00:18]} 68. Kh1 {[%clk 0:00:02]}  Kg3 {[%clk 0:00:17]} 69. Kg1 {[%clk 0:00:02]}  Ra1# {[%clk 0:00:18]} 0-1

[Event "December 5 Late 2023"]
[Site "https://www.chess.com"]
[Date "2023.12.05"]
[Round "4"]
[White "Budisavljevic, Luka"]
[Black "Cervantes Landeiro, Thalia"]
[Result "0-1"]
[Board "51"]
[TimeControl "180+1"]
[WhiteFideId "960047"]
[BlackFideId "3520498"]
[WhiteElo "2780"]
[BlackElo "2535"]
[WhiteTeam "SRB"]
[BlackTeam "USA"]
[WhiteClock "0:00:00"]
[BlackClock "0:00:15"]

1. d4 {[%clk 0:03:00]}  Nf6 {[%clk 0:02:59]} 2. Nf3 {[%clk 0:03:00]}  g6 {[%clk 0:02:59]} 3. c4 {[%clk 0:03:00]}  Bg7 {[%clk 0:02:59]} 4. Nc3 {[%clk 0:03:01]}  d5 {[%clk 0:02:59]} 5. h4 {[%clk 0:03:01]}  c5 {[%clk 0:02:57]} 6. h5 {[%clk 0:02:39]}  cxd4 {[%clk 0:02:45]} 7. h6 {[%clk 0:02:39]}  Bf8 {[%clk 0:02:40]} 8. Nxd5 {[%clk 0:02:26]}  Nxd5 {[%clk 0:02:35]} 9. cxd5 {[%clk 0:02:27]}  Qxd5 {[%clk 0:02:33]} 10. Qxd4 {[%clk 0:02:27]}  Qxd4 {[%clk 0:02:29]} 11. Nxd4 {[%clk 0:02:28]}  e5 {[%clk 0:02:22]} 12. Nb5 {[%clk 0:02:27]}  Na6 {[%clk 0:02:17]} 13. Bd2 {[%clk 0:02:24]}  Bd7 {[%clk 0:02:11]} 14. e3 {[%clk 0:02:23]}  Bc5 {[%clk 0:01:54]} 15. Bc4 {[%clk 0:02:12]}  Ke7 {[%clk 0:01:50]} 16. O-O-O {[%clk 0:02:07]}  Rhc8 {[%clk 0:01:47]} 17. Kb1 {[%clk 0:01:59]}  Bf5+ {[%clk 0:01:47]} 18. Ka1 {[%clk 0:01:58]}  Nb4 {[%clk 0:01:39]} 19. Na3 {[%clk 0:01:26]}  a6 {[%clk 0:01:29]} 20. Bxb4 {[%clk 0:01:16]}  Bxb4 {[%clk 0:01:28]} 21. Bd5 {[%clk 0:01:17]}  Rab8 {[%clk 0:01:10]} 22. Nc4 {[%clk 0:01:09]}  f6 {[%clk 0:01:09]} 23. a3 {[%clk 0:01:04]}  Bc5 {[%clk 0:01:07]} 24. b4 {[%clk 0:01:01]}  Ba7 {[%clk 0:01:05]} 25. Rd2 {[%clk 0:00:52]}  Rd8 {[%clk 0:01:02]} 26. Rhd1 {[%clk 0:00:49]}  Bg4 {[%clk 0:00:56]} 27. f3 {[%clk 0:00:47]}  Bd7 {[%clk 0:00:45]} 28. Rc1 {[%clk 0:00:27]}  b5 {[%clk 0:00:38]} 29. Na5 {[%clk 0:00:23]}  Bb6 {[%clk 0:00:38]} 30. e4 {[%clk 0:00:17]}  Be3 {[%clk 0:00:36]} 31. Rdc2 {[%clk 0:00:16]}  Bxc1 {[%clk 0:00:35]} 32. Rxc1 {[%clk 0:00:17]}  Rbc8 {[%clk 0:00:34]} 33. Rd1 {[%clk 0:00:13]}  Be6 {[%clk 0:00:33]} 34. Kb2 {[%clk 0:00:11]}  Rd6 {[%clk 0:00:30]} 35. Nb7 {[%clk 0:00:10]}  Rb6 {[%clk 0:00:21]} 36. Nc5 {[%clk 0:00:10]}  Rd8 {[%clk 0:00:19]} 37. Kc3 {[%clk 0:00:06]}  Bxd5 {[%clk 0:00:17]} 38. exd5 {[%clk 0:00:07]}  Rbd6 {[%clk 0:00:16]} 39. f4 {[%clk 0:00:07]}  Rxd5 {[%clk 0:00:16]} 40. Re1 {[%clk 0:00:08]}  Kf7 {[%clk 0:00:12]} 41. g3 {[%clk 0:00:05]}  exf4 {[%clk 0:00:12]} 42. gxf4 {[%clk 0:00:06]}  Re8 {[%clk 0:00:13]} 43. Rf1 {[%clk 0:00:06]}  Rf5 {[%clk 0:00:13]} 44. Rf3 {[%clk 0:00:05]}  g5 {[%clk 0:00:13]} 45. Rd3 {[%clk 0:00:04]}  Rxf4 {[%clk 0:00:13]} 46. Rd7+ {[%clk 0:00:04]}  Kg6 {[%clk 0:00:14]} 47. Ra7 {[%clk 0:00:02]}  Kxh6 {[%clk 0:00:14]} 48. Nd7 {[%clk 0:00:02]}  Re3+ {[%clk 0:00:15]} 49. Kd2 {[%clk 0:00:02]}  Rh3 {[%clk 0:00:15]} 50. Nf8 {[%clk 0:00:03]}  Kh5 {[%clk 0:00:14]} 51. Rxh7+ {[%clk 0:00:02]}  Kg4 {[%clk 0:00:14]} 52. Rd7 {[%clk 0:00:03]}  Rf2+ {[%clk 0:00:14]} 53. Ke1 {[%clk 0:00:03]}  Ra2 {[%clk 0:00:15]} 54. Rd4+ {[%clk 0:00:02]}  Kf5 {[%clk 0:00:15]} 55. Rd5+ {[%clk 0:00:00]}  Ke4 {[%clk 0:00:15]} 0-1

[Event "December 5 Late 2023"]
[Site "https://www.chess.com"]
[Date "2023.12.05"]
[Round "4"]
[White "Kosteniuk, Alexandra"]
[Black "Kopczynski, Michal"]
[Result "1-0"]
[Board "52"]
[TimeControl "180+1"]
[WhiteFideId "4128125"]
[BlackFideId "1124200"]
[WhiteElo "2743"]
[BlackElo "2532"]
[WhiteTeam "SUI"]
[BlackTeam "POL"]
[WhiteClock "0:01:10"]
[BlackClock "0:00:09"]

1. e4 {[%clk 0:03:00]}  b6 {[%clk 0:02:58]} 2. d4 {[%clk 0:03:00]}  Bb7 {[%clk 0:02:59]} 3. Bd3 {[%clk 0:02:59]}  e6 {[%clk 0:03:00]} 4. c4 {[%clk 0:02:58]}  Nf6 {[%clk 0:03:00]} 5. f3 {[%clk 0:02:51]}  c5 {[%clk 0:02:58]} 6. d5 {[%clk 0:02:49]}  exd5 {[%clk 0:02:59]} 7. cxd5 {[%clk 0:02:49]}  d6 {[%clk 0:02:59]} 8. Ne2 {[%clk 0:02:49]}  g6 {[%clk 0:02:59]} 9. O-O {[%clk 0:02:48]}  Bg7 {[%clk 0:02:59]} 10. Nbc3 {[%clk 0:02:49]}  O-O {[%clk 0:02:59]} 11. Bg5 {[%clk 0:02:49]}  h6 {[%clk 0:02:58]} 12. Bh4 {[%clk 0:02:49]}  g5 {[%clk 0:02:59]} 13. Bf2 {[%clk 0:02:47]}  Nfd7 {[%clk 0:02:56]} 14. Ng3 {[%clk 0:02:44]}  Re8 {[%clk 0:02:53]} 15. Nf5 {[%clk 0:02:43]}  Bf8 {[%clk 0:02:53]} 16. h4 {[%clk 0:02:41]}  Ne5 {[%clk 0:02:50]} 17. hxg5 {[%clk 0:02:41]}  hxg5 {[%clk 0:02:50]} 18. Be2 {[%clk 0:02:38]}  Bc8 {[%clk 0:02:49]} 19. Ng3 {[%clk 0:02:32]}  a6 {[%clk 0:02:45]} 20. Be3 {[%clk 0:02:33]}  b5 {[%clk 0:02:44]} 21. Qd2 {[%clk 0:02:32]}  f6 {[%clk 0:02:39]} 22. a4 {[%clk 0:02:29]}  b4 {[%clk 0:02:37]} 23. Nd1 {[%clk 0:02:29]}  Nbd7 {[%clk 0:02:30]} 24. f4 {[%clk 0:02:29]}  gxf4 {[%clk 0:02:30]} 25. Bxf4 {[%clk 0:02:30]}  Ng6 {[%clk 0:02:29]} 26. Bh6 {[%clk 0:02:25]}  Nde5 {[%clk 0:02:20]} 27. Nh5 {[%clk 0:02:25]}  Be7 {[%clk 0:02:06]} 28. Bg7 {[%clk 0:02:12]}  Bg4 {[%clk 0:01:35]} 29. Bxf6 {[%clk 0:01:47]}  Bxh5 {[%clk 0:01:32]} 30. Bxe7 {[%clk 0:01:43]}  Qxe7 {[%clk 0:01:29]} 31. Bxh5 {[%clk 0:01:43]}  Qh4 {[%clk 0:01:19]} 32. Rf5 {[%clk 0:01:32]}  Qxe4 {[%clk 0:01:07]} 33. Qg5 {[%clk 0:01:28]}  Re7 {[%clk 0:00:27]} 34. Nf2 {[%clk 0:01:21]}  Qh4 {[%clk 0:00:20]} 35. Rxe5 {[%clk 0:01:13]}  Rxe5 {[%clk 0:00:14]} 36. Qxg6+ {[%clk 0:01:12]}  Kh8 {[%clk 0:00:14]} 37. Qh6+ {[%clk 0:01:11]}  Kg8 {[%clk 0:00:14]} 38. Bf7+ {[%clk 0:01:12]}  Kxf7 {[%clk 0:00:14]} 39. Qxh4 {[%clk 0:01:12]}  Rg8 {[%clk 0:00:09]} 40. Rf1 {[%clk 0:01:10]} 1-0

[Event "December 5 Late 2023"]
[Site "https://www.chess.com"]
[Date "2023.12.05"]
[Round "4"]
[White "Jarmula, Lukasz"]
[Black "Korchynskyi, Mykola"]
[Result "0-1"]
[Board "53"]
[TimeControl "180+1"]
[WhiteFideId "1160664"]
[BlackFideId "34138005"]
[WhiteElo "2742"]
[BlackElo "2530"]
[WhiteTeam "POL"]
[BlackTeam "UKR"]
[WhiteClock "0:01:15"]
[BlackClock "0:00:21"]

1. e4 {[%clk 0:03:00]}  e6 {[%clk 0:02:55]} 2. d4 {[%clk 0:03:00]}  d5 {[%clk 0:02:55]} 3. e5 {[%clk 0:03:01]}  c5 {[%clk 0:02:55]} 4. c3 {[%clk 0:03:01]}  Nc6 {[%clk 0:02:55]} 5. Nf3 {[%clk 0:03:02]}  Qb6 {[%clk 0:02:54]} 6. a3 {[%clk 0:03:02]}  Nh6 {[%clk 0:02:51]} 7. Bd3 {[%clk 0:03:02]}  cxd4 {[%clk 0:02:47]} 8. O-O {[%clk 0:03:01]}  Bd7 {[%clk 0:02:46]} 9. b4 {[%clk 0:03:01]}  a6 {[%clk 0:02:44]} 10. Ra2 {[%clk 0:02:51]}  Be7 {[%clk 0:02:30]} 11. c4 {[%clk 0:02:50]}  dxc4 {[%clk 0:02:28]} 12. Bxc4 {[%clk 0:02:50]}  Nf5 {[%clk 0:02:25]} 13. Nbd2 {[%clk 0:02:50]}  O-O {[%clk 0:02:23]} 14. Ne4 {[%clk 0:02:50]}  Rfd8 {[%clk 0:02:21]} 15. Rd2 {[%clk 0:02:45]}  Rac8 {[%clk 0:02:09]} 16. Bb3 {[%clk 0:02:39]}  a5 {[%clk 0:02:04]} 17. g4 {[%clk 0:02:34]}  Nh6 {[%clk 0:01:51]} 18. Rd3 {[%clk 0:02:29]}  Nxg4 {[%clk 0:01:46]} 19. Nfg5 {[%clk 0:02:17]}  Ncxe5 {[%clk 0:01:21]} 20. Rg3 {[%clk 0:02:17]}  Bb5 {[%clk 0:01:12]} 21. Rxg4 {[%clk 0:01:59]}  Nxg4 {[%clk 0:01:07]} 22. Qxg4 {[%clk 0:01:59]}  Bxf1 {[%clk 0:01:06]} 23. Nxe6 {[%clk 0:01:52]}  fxe6 {[%clk 0:01:03]} 24. Bh6 {[%clk 0:01:52]}  Bf8 {[%clk 0:00:40]} 25. Bxe6+ {[%clk 0:01:39]}  Kh8 {[%clk 0:00:40]} 26. Ng5 {[%clk 0:01:38]}  Rc7 {[%clk 0:00:39]} 27. Qf5 {[%clk 0:01:28]}  gxh6 {[%clk 0:00:35]} 28. Qf6+ {[%clk 0:01:27]}  Rg7 {[%clk 0:00:27]} 29. Kxf1 {[%clk 0:01:20]}  Qb5+ {[%clk 0:00:20]} 30. Ke1 {[%clk 0:01:15]}  Qxg5 {[%clk 0:00:21]} 0-1

[Event "December 5 Late 2023"]
[Site "https://www.chess.com"]
[Date "2023.12.05"]
[Round "4"]
[White "Urbina Perez, Juan Antonio"]
[Black "Sattarov, Bobir"]
[Result "0-1"]
[Board "54"]
[TimeControl "180+1"]
[WhiteFideId "2217368"]
[BlackFideId "14203081"]
[WhiteElo "2528"]
[BlackElo "2727"]
[WhiteTeam "ESP"]
[BlackTeam "UZB"]
[WhiteClock "0:00:22"]
[BlackClock "0:00:40"]

1. e4 {[%clk 0:03:00]}  e5 {[%clk 0:02:59]} 2. Nf3 {[%clk 0:03:00]}  Nc6 {[%clk 0:02:59]} 3. Bc4 {[%clk 0:03:01]}  Bc5 {[%clk 0:02:59]} 4. d3 {[%clk 0:03:00]}  d6 {[%clk 0:02:59]} 5. a4 {[%clk 0:02:59]}  a6 {[%clk 0:02:56]} 6. Be3 {[%clk 0:02:57]}  h6 {[%clk 0:02:53]} 7. Bxc5 {[%clk 0:02:52]}  dxc5 {[%clk 0:02:54]} 8. Bd5 {[%clk 0:02:51]}  Nge7 {[%clk 0:02:53]} 9. Nc3 {[%clk 0:02:50]}  O-O {[%clk 0:02:52]} 10. O-O {[%clk 0:02:49]}  Qd6 {[%clk 0:02:51]} 11. h3 {[%clk 0:02:47]}  Nd4 {[%clk 0:02:51]} 12. Ba2 {[%clk 0:02:40]}  Ng6 {[%clk 0:02:48]} 13. Nxd4 {[%clk 0:02:39]}  cxd4 {[%clk 0:02:49]} 14. Ne2 {[%clk 0:02:39]}  Nh4 {[%clk 0:02:32]} 15. Ng3 {[%clk 0:02:17]}  Qf6 {[%clk 0:02:20]} 16. Qh5 {[%clk 0:02:08]}  Ng6 {[%clk 0:02:18]} 17. Ne2 {[%clk 0:02:07]}  Be6 {[%clk 0:02:14]} 18. f4 {[%clk 0:01:55]}  exf4 {[%clk 0:02:08]} 19. Qf3 {[%clk 0:01:52]}  Bxa2 {[%clk 0:01:31]} 20. Rxa2 {[%clk 0:01:53]}  Qe6 {[%clk 0:01:23]} 21. Raa1 {[%clk 0:01:51]}  f5 {[%clk 0:01:21]} 22. Nxf4 {[%clk 0:01:15]}  Nxf4 {[%clk 0:01:18]} 23. Qxf4 {[%clk 0:01:15]}  fxe4 {[%clk 0:01:16]} 24. Qxe4 {[%clk 0:01:16]}  Qxe4 {[%clk 0:01:14]} 25. dxe4 {[%clk 0:01:17]}  c5 {[%clk 0:01:12]} 26. b3 {[%clk 0:01:11]}  b6 {[%clk 0:01:08]} 27. Rae1 {[%clk 0:01:02]}  Rae8 {[%clk 0:01:06]} 28. Rxf8+ {[%clk 0:00:58]}  Kxf8 {[%clk 0:01:06]} 29. Kf2 {[%clk 0:00:57]}  Ke7 {[%clk 0:01:03]} 30. Ke2 {[%clk 0:00:53]}  Rf8 {[%clk 0:00:59]} 31. c3 {[%clk 0:00:51]}  Rd8 {[%clk 0:00:51]} 32. Rc1 {[%clk 0:00:45]}  Ke6 {[%clk 0:00:50]} 33. Rd1 {[%clk 0:00:29]}  Ke5 {[%clk 0:00:47]} 34. Kf3 {[%clk 0:00:28]}  dxc3 {[%clk 0:00:43]} 35. Rxd8 {[%clk 0:00:26]}  c2 {[%clk 0:00:43]} 36. Re8+ {[%clk 0:00:22]}  Kf6 {[%clk 0:00:40]} 0-1